fUST/lending_fUST_20260520
["ID","MTS","AMOUNT","RATE_DAILY","PERIOD"]
[422696040,1779258645000,-500.0,8.219e-05,2]
[422696041,1779258645000,-500.0,8.219e-05,2]
[422696043,1779258645000,-500.0,8.219e-05,2]
[422696051,1779258645000,-500.0,8.219e-05,2]
[422696052,1779258645000,-500.0,8.219e-05,2]
[422696046,1779258645000,-500.0,8.219e-05,2]
[422696042,1779258645000,-9949.972457,8.219e-05,2]
[422696044,1779258645000,-500.0,8.219e-05,2]
[422696045,1779258645000,-500.0,8.219e-05,2]
[422696047,1779258645000,-500.0,8.219e-05,2]
[422696050,1779258645000,-500.0,8.219e-05,2]
[422696048,1779258645000,-9949.972457,8.219e-05,2]
[422696054,1779258645000,-500.0,8.219e-05,2]
[422696056,1779258645000,-500.0,8.219e-05,2]
[422696061,1779258645000,-9949.972457,8.219e-05,2]
[422696063,1779258645000,-500.0,8.219e-05,2]
[422696062,1779258645000,-9949.972457,8.219e-05,2]
[422696055,1779258645000,-500.0,8.219e-05,2]
[422696053,1779258645000,-9949.972457,8.219e-05,2]
[422696064,1779258645000,-500.0,8.219e-05,2]
[422696059,1779258645000,-9949.972457,8.219e-05,2]
[422696085,1779258645000,-500.0,8.219e-05,2]
[422696101,1779258645000,-565.441517,8.219e-05,2]
[422696082,1779258645000,-565.441517,8.219e-05,2]
[422696112,1779258645000,-500.75782657,8.219e-05,2]
[422696111,1779258645000,-500.0,8.219e-05,2]
[422696113,1779258645000,-1158.29,8.219e-05,2]
[422696116,1779258645000,-518.189031,8.219e-05,2]
[422696118,1779258645000,-518.189031,8.219e-05,2]
[422696119,1779258645000,-500.0,8.219e-05,2]
[422696117,1779258645000,-518.189031,8.219e-05,2]
[422696128,1779258645000,-518.189031,8.219e-05,2]
[422696130,1779258645000,-518.189031,8.219e-05,2]
[422696114,1779258645000,-518.189031,8.219e-05,2]
[422696121,1779258645000,-518.189031,8.219e-05,2]
[422696126,1779258645000,-518.189031,8.219e-05,2]
[422696131,1779258645000,-518.189031,8.219e-05,2]
[422696129,1779258645000,-518.189031,8.219e-05,2]
[422696123,1779258645000,-500.0,8.219e-05,2]
[422696088,1779258645000,-565.441517,8.219e-05,2]
[422696124,1779258645000,-518.189031,8.219e-05,2]
[422696132,1779258645000,-10262.860757,8.219e-05,2]
[422696134,1779258645000,-6912.46689333,8.219e-05,2]
[422696133,1779258645000,-10946.80404107,8.219e-05,2]
[422696127,1779258645000,-500.0,8.219e-05,2]
[422696109,1779258645000,-500.0,8.219e-05,2]
[422696125,1779258645000,-518.189031,8.219e-05,2]
[422696107,1779258645000,-565.441521,8.219e-05,2]
[422696110,1779258645000,-500.0,8.219e-05,2]
[422696084,1779258645000,-500.0,8.219e-05,2]
[422696083,1779258645000,-565.441517,8.219e-05,2]
[422696090,1779258645000,-565.441517,8.219e-05,2]
[422696097,1779258645000,-565.441517,8.219e-05,2]
[422696091,1779258645000,-500.0,8.219e-05,2]
[422696096,1779258645000,-565.441517,8.219e-05,2]
[422696099,1779258645000,-565.441517,8.219e-05,2]
[422696092,1779258645000,-565.441517,8.219e-05,2]
[422696093,1779258645000,-565.441517,8.219e-05,2]
[422696095,1779258645000,-1722.41,8.219e-05,2]
[422696098,1779258645000,-565.441517,8.219e-05,2]
[422696102,1779258645000,-565.441517,8.219e-05,2]
[422696103,1779258645000,-930.82,8.219e-05,2]
[422696094,1779258645000,-565.441517,8.219e-05,2]
[422696105,1779258645000,-565.441517,8.219e-05,2]
[422696115,1779258645000,-518.189031,8.219e-05,2]
[422696104,1779258645000,-565.441517,8.219e-05,2]
[422696108,1779258645000,-2216.81,8.219e-05,2]
[422696100,1779258645000,-565.441517,8.219e-05,2]
[422696106,1779258645000,-565.441517,8.219e-05,2]
[422696148,1779258646000,-2233.95,8.219e-05,2]
[422696147,1779258646000,-518.189031,8.219e-05,2]
[422696142,1779258646000,-2903.58,8.219e-05,2]
[422696140,1779258646000,-3576.91254535,8.219e-05,2]
[422696143,1779258646000,-518.189031,8.219e-05,2]
[422696144,1779258646000,-502.88530287,8.219e-05,2]
[422696146,1779258646000,-518.189031,8.219e-05,2]
[422696141,1779258646000,-2765.19576325,8.219e-05,2]
[422696149,1779258646000,-518.189031,8.219e-05,2]
[422696145,1779258646000,-500.0,8.219e-05,2]
[422696150,1779258646000,-368.31651994,8.219e-05,2]
[422696156,1779258646000,-500.0,8.219e-05,2]
[422696155,1779258646000,-4765.71,8.219e-05,2]
[422696154,1779258646000,-500.0,8.219e-05,2]
[422696153,1779258646000,-518.189039,8.219e-05,2]
[422696151,1779258646000,-518.189031,8.219e-05,2]
[422696158,1779258646000,-500.0,8.219e-05,2]
[422696161,1779258646000,-527.37060269,8.219e-05,2]
[422696157,1779258646000,-500.0,8.219e-05,2]
[422696159,1779258646000,-2624.39615498,8.219e-05,2]
[422696160,1779258646000,-295.66356855,8.219e-05,2]
[422696167,1779258646000,-2665.99675393,8.219e-05,2]
[422696152,1779258646000,-518.189031,8.219e-05,2]
[422696178,1779258647000,-151.0,8.219e-05,2]
[422696173,1779258647000,-500.0,8.219e-05,2]
[422696177,1779258647000,-151.0,8.219e-05,2]
[422696175,1779258647000,-500.0,8.219e-05,2]
[422696174,1779258647000,-500.0,8.219e-05,2]
[422696168,1779258647000,-669.29291985,8.219e-05,2]
[422696171,1779258647000,-151.0,8.219e-05,2]
[422696172,1779258647000,-266.609836,8.219e-05,2]
[422696179,1779258647000,-151.0,8.219e-05,2]
[422696169,1779258647000,-500.0,8.219e-05,2]
[422696170,1779258647000,-253.711477,8.219e-05,2]
[422696176,1779258647000,-151.0,8.219e-05,2]
[422696180,1779258647000,-151.0,8.219e-05,2]
[422696192,1779258647000,-528.16347146,8.219e-05,2]
[422696182,1779258647000,-151.0,8.219e-05,2]
[422696181,1779258647000,-151.0,8.219e-05,2]
[422696193,1779258647000,-1005.95652854,8.219e-05,2]
[422696190,1779258647000,-151.0,8.219e-05,2]
[422696188,1779258647000,-151.0,8.219e-05,2]
[422696191,1779258647000,-151.0,8.219e-05,2]
[422696187,1779258647000,-500.0,8.219e-05,2]
[422696189,1779258647000,-151.0,8.219e-05,2]
[422696186,1779258647000,-151.0,8.219e-05,2]
[422696183,1779258647000,-500.0,8.219e-05,2]
[422696185,1779258647000,-151.0,8.219e-05,2]
[422696194,1779258647000,-151.0,8.219e-05,2]
[422696184,1779258647000,-151.0,8.219e-05,2]
[422696195,1779258647000,-281.97257859,8.219e-05,2]
[422696196,1779258673000,-152.0,7.16e-05,2]
[422696424,1779259843000,-300.0,6.602e-05,2]
[422696435,1779259843000,-300.0,6.602e-05,2]
[422696433,1779259843000,-300.0,6.602e-05,2]
[422696432,1779259843000,-300.0,6.602e-05,2]
[422696429,1779259843000,-300.0,6.602e-05,2]
[422696427,1779259843000,-300.0,6.602e-05,2]
[422696422,1779259843000,-162.748261,6.573e-05,2]
[422696414,1779259843000,-200.0,6.224e-05,2]
[422696416,1779259843000,-106.07617033,6.348e-05,2]
[422696419,1779259843000,-1343.32405583,6.473e-05,2]
[422696420,1779259843000,-10046.65630425,6.473e-05,2]
[422696417,1779259843000,-300.0,6.472e-05,2]
[422696415,1779259843000,-482.12499855,6.348e-05,2]
[422696431,1779259843000,-300.0,6.602e-05,2]
[422696418,1779259843000,-6871.85147453,6.473e-05,2]
[422696436,1779259843000,-300.0,6.602e-05,2]
[422696437,1779259843000,-300.0,6.602e-05,2]
[422696434,1779259843000,-300.0,6.602e-05,2]
[422696451,1779259843000,-1399.81672687,8e-05,2]
[422696452,1779259843000,-500.0,8.017e-05,2]
[422696446,1779259843000,-152.0,7.16e-05,2]
[422696438,1779259843000,-300.0,6.602e-05,2]
[422696445,1779259843000,-152.0,7.16e-05,2]
[422696444,1779259843000,-420.0,7.12e-05,2]
[422696443,1779259843000,-600.0,6.733e-05,2]
[422696447,1779259843000,-152.0,7.174e-05,2]
[422696440,1779259843000,-300.0,6.602e-05,2]
[422696441,1779259843000,-300.0,6.602e-05,2]
[422696450,1779259843000,-1399.81672694,8e-05,2]
[422696448,1779259843000,-720.0,7.406e-05,2]
[422696449,1779259843000,-587.0,7.832e-05,2]
[422696439,1779259843000,-300.0,6.602e-05,2]
[422696442,1779259843000,-300.0,6.602e-05,2]
[422696459,1779259844000,-500.0,8.017e-05,2]
[422696460,1779259844000,-500.0,8.017e-05,2]
[422696457,1779259844000,-174.13565587,8.017e-05,2]
[422696456,1779259844000,-500.0,8.017e-05,2]
[422696454,1779259844000,-500.0,8.017e-05,2]
[422696462,1779259844000,-161.80268049,8.017e-05,2]
[422696453,1779259844000,-500.0,8.017e-05,2]
[422696461,1779259844000,-207.33919333,8.017e-05,2]
[422696455,1779259844000,-500.0,8.017e-05,2]
[422696458,1779259844000,-500.0,8.017e-05,2]
[422696463,1779259844000,-500.0,8.017e-05,2]
[422696474,1779259844000,-140881.57196413,8.018e-05,2]
[422696466,1779259844000,-214.87224735,8.017e-05,2]
[422696470,1779259844000,-324.86412751,8.017e-05,2]
[422696475,1779259844000,-34258.06788533,8.018e-05,2]
[422696467,1779259844000,-285.12775265,8.017e-05,2]
[422696465,1779259844000,-73.201325,8.017e-05,2]
[422696464,1779259844000,-485.04417967,8.017e-05,2]
[422696468,1779259844000,-500.0,8.017e-05,2]
[422696471,1779259844000,-500.0,8.017e-05,2]
[422696472,1779259844000,-500.0,8.017e-05,2]
[422696469,1779259844000,-500.0,8.017e-05,2]
[422696473,1779259844000,-550.0,8.017e-05,2]
[422696485,1779259846000,-42775.7310544,8.018e-05,2]
[422696583,1779261033000,-152.0,7.248e-05,2]
[422696581,1779261033000,-583.41603392,7.229e-05,2]
[422696585,1779261033000,-24.60132759,7.257e-05,2]
[422696587,1779261033000,-127.39867241,7.257e-05,2]
[422696593,1779261033000,-160.0,8.075e-05,2]
[422696591,1779261033000,-160.0,8.075e-05,2]
[422696595,1779261033000,-161.70661154,8.075e-05,2]
[422696597,1779261033000,-766.43500783,8.118e-05,2]
[422696603,1779261033000,-3636.15472222,8.119e-05,2]
[422696601,1779261033000,-300.0,8.118e-05,2]
[422696607,1779261033000,-1343.7500641,8.119e-05,2]
[422696611,1779261033000,-13261.62080883,8.119e-05,2]
[422696608,1779261033000,-10401.6444003,8.119e-05,2]
[422696589,1779261033000,-151.0,7.787e-05,2]
[422696599,1779261033000,-202.76268083,8.118e-05,2]
[422696660,1779261038000,-2477.04716169,8.119e-05,2]
[422696659,1779261038000,-4752.06329729,8.119e-05,2]
[422696658,1779261038000,-417.27455435,8.119e-05,2]
[422696679,1779261040000,-3250.67284012,8.119e-05,2]
[422696680,1779261040000,-879.09189318,8.119e-05,2]
[422696678,1779261040000,-6625.51755511,8.119e-05,2]
[422696732,1779261044000,-9549.73661251,8.119e-05,2]
[422696734,1779261044000,-953.24929635,8.119e-05,2]
[422696753,1779261047000,-11503.19282246,8.119e-05,2]
[422696926,1779262232000,-152.0,7.279e-05,2]
[422696954,1779262232000,-156.78401659,8.014e-05,2]
[422696958,1779262232000,-152.0,8.051e-05,2]
[422696952,1779262232000,-151.0,8.014e-05,2]
[422696973,1779262232000,-152.0,8.149e-05,7]
[422696970,1779262232000,-578.20924308,8.124e-05,2]
[422696979,1779262232000,-152.0,8.149e-05,7]
[422696956,1779262232000,-152.0,8.046e-05,2]
[422696986,1779262232000,-152.0,8.154e-05,7]
[422696975,1779262232000,-152.0,8.149e-05,7]
[422696981,1779262232000,-152.0,8.151e-05,7]
[422696997,1779262232000,-300.0,8.177e-05,2]
[422696992,1779262232000,-300.0,8.177e-05,2]
[422696988,1779262232000,-300.0,8.177e-05,2]
[422696982,1779262232000,-152.0,8.151e-05,7]
[422696977,1779262232000,-152.0,8.149e-05,7]
[422696928,1779262232000,-152.0,7.284e-05,2]
[422696968,1779262232000,-161.70661154,8.118e-05,2]
[422696966,1779262232000,-766.43500783,8.075e-05,2]
[422696938,1779262232000,-1200.0,7.918e-05,2]
[422696939,1779262232000,-12936.77666637,7.919e-05,2]
[422696942,1779262232000,-464.89277689,7.919e-05,2]
[422696935,1779262232000,-300.0,7.918e-05,2]
[422696924,1779262232000,-586.92959924,7.272e-05,2]
[422696933,1779262232000,-300.0,7.918e-05,2]
[422696962,1779262232000,-160.0,8.075e-05,2]
[422696932,1779262232000,-300.0,7.918e-05,2]
[422696945,1779262232000,-7375.57699305,7.919e-05,2]
[422696947,1779262232000,-537.6845,8.014e-05,2]
[422696960,1779262232000,-557.5788265,8.069e-05,2]
[422696950,1779262232000,-151.0,8.014e-05,2]
[422696948,1779262232000,-151.0,8.014e-05,2]
[422696964,1779262232000,-160.0,8.075e-05,2]
[422696930,1779262232000,-300.0,7.918e-05,2]
[422696999,1779262232000,-300.0,8.177e-05,2]
[422696994,1779262232000,-300.0,8.177e-05,2]
[422696984,1779262232000,-152.0,8.151e-05,7]
[422697033,1779262232000,-500.0,8.218e-05,2]
[422697029,1779262232000,-500.0,8.218e-05,2]
[422697035,1779262232000,-500.0,8.218e-05,2]
[422697048,1779262232000,-500.0,8.218e-05,2]
[422697046,1779262232000,-500.0,8.218e-05,2]
[422697050,1779262232000,-500.0,8.218e-05,2]
[422697052,1779262232000,-500.0,8.218e-05,2]
[422697056,1779262232000,-500.0,8.218e-05,2]
[422697054,1779262232000,-500.0,8.218e-05,2]
[422697057,1779262232000,-184.17318662,8.218e-05,2]
[422697059,1779262232000,-500.0,8.218e-05,2]
[422697063,1779262232000,-500.0,8.218e-05,2]
[422697061,1779262232000,-462.0561729,8.218e-05,2]
[422697065,1779262232000,-500.0,8.218e-05,2]
[422696990,1779262232000,-300.0,8.177e-05,2]
[422697045,1779262232000,-500.0,8.218e-05,2]
[422697043,1779262232000,-500.0,8.218e-05,2]
[422697031,1779262232000,-500.0,8.218e-05,2]
[422697039,1779262232000,-500.0,8.218e-05,2]
[422697003,1779262232000,-300.0,8.177e-05,2]
[422697001,1779262232000,-300.0,8.177e-05,2]
[422697005,1779262232000,-300.0,8.177e-05,2]
[422697009,1779262232000,-300.0,8.177e-05,2]
[422697011,1779262232000,-300.0,8.177e-05,2]
[422697041,1779262232000,-500.0,8.218e-05,2]
[422697007,1779262232000,-300.0,8.177e-05,2]
[422697017,1779262232000,-300.0,8.177e-05,2]
[422697013,1779262232000,-300.0,8.177e-05,2]
[422697021,1779262232000,-599.60298507,8.179e-05,2]
[422697019,1779262232000,-600.0,8.177e-05,2]
[422697023,1779262232000,-163.78465323,8.214e-05,2]
[422697025,1779262232000,-500.0,8.218e-05,2]
[422697027,1779262232000,-500.0,8.218e-05,2]
[422697038,1779262232000,-500.0,8.218e-05,2]
[422697015,1779262232000,-300.0,8.177e-05,2]
[422697077,1779262233000,-500.0,8.218e-05,2]
[422697070,1779262233000,-500.0,8.218e-05,2]
[422697067,1779262233000,-500.0,8.218e-05,2]
[422697072,1779262233000,-500.0,8.218e-05,2]
[422697073,1779262233000,-500.0,8.218e-05,2]
[422697069,1779262233000,-500.0,8.218e-05,2]
[422697081,1779262233000,-3226.0364,8.219e-05,2]
[422697091,1779262233000,-234.16607382,8.219e-05,2]
[422697075,1779262233000,-224.3985904,8.218e-05,2]
[422697085,1779262233000,-1225.31,8.219e-05,2]
[422697083,1779262233000,-940.9248,8.219e-05,2]
[422697090,1779262233000,-774.0,8.219e-05,2]
[422697087,1779262233000,-456.16607382,8.219e-05,2]
[422697089,1779262233000,-43.83392618,8.219e-05,2]
[422697079,1779262233000,-450.0,8.218e-05,2]
[422697124,1779262238000,-500.0,8.219e-05,2]
[422697127,1779262238000,-628.54,8.219e-05,2]
[422697125,1779262238000,-500.0,8.219e-05,2]
[422697123,1779262238000,-281.07958183,8.219e-05,2]
[422697122,1779262238000,-500.0,8.219e-05,2]
[422697120,1779262238000,-500.0,8.219e-05,2]
[422697121,1779262238000,-500.0,8.219e-05,2]
[422697119,1779262238000,-560.43,8.219e-05,2]
[422697117,1779262238000,-567.98594983,8.219e-05,2]
[422697114,1779262238000,-500.0,8.219e-05,2]
[422697113,1779262238000,-500.0,8.219e-05,2]
[422697116,1779262238000,-500.0,8.219e-05,2]
[422697111,1779262238000,-500.0,8.219e-05,2]
[422697112,1779262238000,-500.0,8.219e-05,2]
[422697108,1779262238000,-500.0,8.219e-05,2]
[422697110,1779262238000,-500.0,8.219e-05,2]
[422697109,1779262238000,-500.0,8.219e-05,2]
[422697107,1779262238000,-500.0,8.219e-05,2]
[422697115,1779262238000,-500.0,8.219e-05,2]
[422697126,1779262238000,-500.0,8.219e-05,2]
[422697118,1779262238000,-851.09,8.219e-05,2]
[422697128,1779262238000,-500.0,8.219e-05,2]
[422697129,1779262238000,-1347.05,8.219e-05,2]
[422697148,1779262238000,-576.26,8.219e-05,2]
[422697144,1779262238000,-529.58,8.219e-05,2]
[422697146,1779262238000,-500.0,8.219e-05,2]
[422697147,1779262238000,-500.0,8.219e-05,2]
[422697137,1779262238000,-500.0,8.219e-05,2]
[422697139,1779262238000,-500.0,8.219e-05,2]
[422697142,1779262238000,-500.0,8.219e-05,2]
[422697138,1779262238000,-500.0,8.219e-05,2]
[422697145,1779262238000,-500.0,8.219e-05,2]
[422697134,1779262238000,-500.0,8.219e-05,2]
[422697143,1779262238000,-500.0,8.219e-05,2]
[422697136,1779262238000,-500.0,8.219e-05,2]
[422697140,1779262238000,-855.34,8.219e-05,2]
[422697141,1779262238000,-500.0,8.219e-05,2]
[422697131,1779262238000,-500.0,8.219e-05,2]
[422697133,1779262238000,-500.0,8.219e-05,2]
[422697130,1779262238000,-500.0,8.219e-05,2]
[422697135,1779262238000,-500.0,8.219e-05,2]
[422697132,1779262238000,-500.0,8.219e-05,2]
[422697187,1779262239000,-500.89461443,8.219e-05,2]
[422697183,1779262239000,-500.0,8.219e-05,2]
[422697185,1779262239000,-500.0,8.219e-05,2]
[422697184,1779262239000,-500.0,8.219e-05,2]
[422697177,1779262239000,-561.16,8.219e-05,2]
[422697180,1779262239000,-500.0,8.219e-05,2]
[422697179,1779262239000,-549.62,8.219e-05,2]
[422697181,1779262239000,-500.0,8.219e-05,2]
[422697186,1779262239000,-2838.66,8.219e-05,2]
[422697182,1779262239000,-565.77759807,8.219e-05,2]
[422697188,1779262239000,-500.0,8.219e-05,2]
[422697199,1779262239000,-500.0,8.219e-05,2]
[422697191,1779262239000,-500.0,8.219e-05,2]
[422697193,1779262239000,-500.0,8.219e-05,2]
[422697192,1779262239000,-500.0,8.219e-05,2]
[422697189,1779262239000,-702.59,8.219e-05,2]
[422697194,1779262239000,-500.0,8.219e-05,2]
[422697195,1779262239000,-774.64,8.219e-05,2]
[422697196,1779262239000,-500.0,8.219e-05,2]
[422697200,1779262239000,-500.0,8.219e-05,2]
[422697176,1779262239000,-500.0,8.219e-05,2]
[422697197,1779262239000,-500.0,8.219e-05,2]
[422697198,1779262239000,-1106.32,8.219e-05,2]
[422697190,1779262239000,-500.0,8.219e-05,2]
[422697173,1779262239000,-656.95,8.219e-05,2]
[422697163,1779262239000,-500.0,8.219e-05,2]
[422697178,1779262239000,-500.0,8.219e-05,2]
[422697157,1779262239000,-522.44,8.219e-05,2]
[422697154,1779262239000,-500.0,8.219e-05,2]
[422697152,1779262239000,-708.55,8.219e-05,2]
[422697151,1779262239000,-979.57,8.219e-05,2]
[422697149,1779262239000,-500.0,8.219e-05,2]
[422697156,1779262239000,-500.0,8.219e-05,2]
[422697155,1779262239000,-968.92,8.219e-05,2]
[422697150,1779262239000,-568.2,8.219e-05,2]
[422697153,1779262239000,-1367.13,8.219e-05,2]
[422697159,1779262239000,-500.0,8.219e-05,2]
[422697158,1779262239000,-500.0,8.219e-05,2]
[422697175,1779262239000,-500.0,8.219e-05,2]
[422697160,1779262239000,-540.85171679,8.219e-05,2]
[422697162,1779262239000,-1485.06,8.219e-05,2]
[422697164,1779262239000,-500.0,8.219e-05,2]
[422697166,1779262239000,-500.0,8.219e-05,2]
[422697165,1779262239000,-513.62,8.219e-05,2]
[422697167,1779262239000,-500.0,8.219e-05,2]
[422697169,1779262239000,-500.0,8.219e-05,2]
[422697171,1779262239000,-502.05934538,8.219e-05,2]
[422697170,1779262239000,-500.0,8.219e-05,2]
[422697168,1779262239000,-1000.0,8.219e-05,2]
[422697172,1779262239000,-500.0,8.219e-05,2]
[422697174,1779262239000,-500.0,8.219e-05,2]
[422697161,1779262239000,-500.0,8.219e-05,2]
[422697202,1779262239000,-798.62,8.219e-05,2]
[422697216,1779262239000,-500.0,8.219e-05,2]
[422697204,1779262239000,-1199.29,8.219e-05,2]
[422697233,1779262239000,-500.0,8.219e-05,2]
[422697235,1779262239000,-500.0,8.219e-05,2]
[422697236,1779262239000,-500.0,8.219e-05,2]
[422697241,1779262239000,-500.0,8.219e-05,2]
[422697239,1779262239000,-500.0,8.219e-05,2]
[422697242,1779262239000,-159.61336496,8.219e-05,2]
[422697237,1779262239000,-500.0,8.219e-05,2]
[422697238,1779262239000,-500.0,8.219e-05,2]
[422697240,1779262239000,-500.0,8.219e-05,2]
[422697231,1779262239000,-500.0,8.219e-05,2]
[422697250,1779262239000,-675.32,8.219e-05,2]
[422697232,1779262239000,-500.0,8.219e-05,2]
[422697244,1779262239000,-905.76,8.219e-05,2]
[422697253,1779262239000,-500.0,8.219e-05,2]
[422697246,1779262239000,-500.0,8.219e-05,2]
[422697254,1779262239000,-1062.39,8.219e-05,2]
[422697252,1779262239000,-500.0,8.219e-05,2]
[422697251,1779262239000,-500.0,8.219e-05,2]
[422697245,1779262239000,-500.0,8.219e-05,2]
[422697249,1779262239000,-500.0,8.219e-05,2]
[422697247,1779262239000,-511.15,8.219e-05,2]
[422697256,1779262239000,-500.0,8.219e-05,2]
[422697255,1779262239000,-500.0,8.219e-05,2]
[422697203,1779262239000,-500.0,8.219e-05,2]
[422697248,1779262239000,-500.0,8.219e-05,2]
[422697234,1779262239000,-500.0,8.219e-05,2]
[422697243,1779262239000,-701.88,8.219e-05,2]
[422697226,1779262239000,-588.73,8.219e-05,2]
[422697230,1779262239000,-500.0,8.219e-05,2]
[422697205,1779262239000,-1512.44,8.219e-05,2]
[422697206,1779262239000,-500.0,8.219e-05,2]
[422697208,1779262239000,-500.0,8.219e-05,2]
[422697207,1779262239000,-596.15,8.219e-05,2]
[422697209,1779262239000,-886.15,8.219e-05,2]
[422697214,1779262239000,-371.112,8.219e-05,2]
[422697212,1779262239000,-500.0,8.219e-05,2]
[422697210,1779262239000,-514.5318364,8.219e-05,2]
[422697213,1779262239000,-500.0,8.219e-05,2]
[422697215,1779262239000,-2749.28,8.219e-05,2]
[422697217,1779262239000,-500.0,8.219e-05,2]
[422697211,1779262239000,-500.0,8.219e-05,2]
[422697218,1779262239000,-1320.45,8.219e-05,2]
[422697225,1779262239000,-1667.51,8.219e-05,2]
[422697221,1779262239000,-572.12,8.219e-05,2]
[422697224,1779262239000,-1216.73,8.219e-05,2]
[422697201,1779262239000,-500.0,8.219e-05,2]
[422697229,1779262239000,-500.0,8.219e-05,2]
[422697223,1779262239000,-500.0,8.219e-05,2]
[422697228,1779262239000,-500.0,8.219e-05,2]
[422697222,1779262239000,-500.0,8.219e-05,2]
[422697220,1779262239000,-500.0,8.219e-05,2]
[422697219,1779262239000,-500.0,8.219e-05,2]
[422697227,1779262239000,-500.0,8.219e-05,2]
[422697257,1779262240000,-500.0,8.219e-05,2]
[422697258,1779262240000,-500.0,8.219e-05,2]
[422697266,1779262240000,-500.0,8.219e-05,2]
[422697259,1779262240000,-500.0,8.219e-05,2]
[422697264,1779262240000,-500.0,8.219e-05,2]
[422697265,1779262240000,-594.96,8.219e-05,2]
[422697263,1779262240000,-500.0,8.219e-05,2]
[422697260,1779262240000,-500.0,8.219e-05,2]
[422697261,1779262240000,-500.0,8.219e-05,2]
[422697267,1779262240000,-1421.79178716,8.219e-05,2]
[422697262,1779262240000,-500.0,8.219e-05,2]
[422697270,1779262241000,-4606.7222871,8.219e-05,2]
[422697274,1779262241000,-265.78580198,8.219e-05,2]
[422697272,1779262241000,-445.65592574,8.219e-05,2]
[422697273,1779262241000,-500.0,8.219e-05,2]
[422697276,1779262241000,-239.56305244,8.219e-05,2]
[422697277,1779262241000,-500.0,8.219e-05,2]
[422697278,1779262241000,-228.44932026,8.219e-05,2]
[422697279,1779262241000,-396.27900709,8.219e-05,2]
[422697281,1779262241000,-429.61343684,8.219e-05,2]
[422697280,1779262241000,-746.05167265,8.219e-05,2]
[422697275,1779262241000,-234.21419802,8.219e-05,2]
[422697311,1779262243000,-1049.01830578,8.219e-05,2]
[422697303,1779262243000,-500.0,8.219e-05,2]
[422697302,1779262243000,-70.38656316,8.219e-05,2]
[422697313,1779262243000,-928.36,8.219e-05,2]
[422697304,1779262243000,-500.0,8.219e-05,2]
[422697306,1779262243000,-500.0,8.219e-05,2]
[422697305,1779262243000,-500.0,8.219e-05,2]
[422697307,1779262243000,-500.0,8.219e-05,2]
[422697308,1779262243000,-868.65,8.219e-05,2]
[422697312,1779262243000,-1928.12169422,8.219e-05,2]
[422697310,1779262243000,-500.0,8.219e-05,2]
[422697309,1779262243000,-542.29,8.219e-05,2]
[422697314,1779262243000,-460.26830578,8.219e-05,2]
[422697341,1779262247000,-549.61280144,8.219e-05,2]
[422697339,1779262247000,-500.0,8.219e-05,2]
[422697335,1779262247000,-2719.56,8.219e-05,2]
[422697338,1779262247000,-500.0,8.219e-05,2]
[422697337,1779262247000,-760.3,8.219e-05,2]
[422697342,1779262247000,-500.0,8.219e-05,2]
[422697343,1779262247000,-500.0,8.219e-05,2]
[422697336,1779262247000,-500.0,8.219e-05,2]
[422697345,1779262247000,-2057.34,8.219e-05,2]
[422697350,1779262247000,-500.0,8.219e-05,2]
[422697347,1779262247000,-500.0,8.219e-05,2]
[422697340,1779262247000,-1340.81719856,8.219e-05,2]
[422697331,1779262247000,-500.0,8.219e-05,2]
[422697326,1779262247000,-500.0,8.219e-05,2]
[422697330,1779262247000,-2539.97,8.219e-05,2]
[422697348,1779262247000,-1841.91,8.219e-05,2]
[422697329,1779262247000,-431.73869117,8.219e-05,2]
[422697325,1779262247000,-500.0,8.219e-05,2]
[422697328,1779262247000,-500.0,8.219e-05,2]
[422697322,1779262247000,-2227.65,8.219e-05,2]
[422697327,1779262247000,-685.4,8.219e-05,2]
[422697324,1779262247000,-500.0,8.219e-05,2]
[422697334,1779262247000,-227.66447034,8.219e-05,2]
[422697333,1779262247000,-500.0,8.219e-05,2]
[422697323,1779262247000,-2885.76,8.219e-05,2]
[422697320,1779262247000,-1625.44169422,8.219e-05,2]